[Event "Summer Prague Open-A 2022"]
[Site "Prague"]
[Date "2022.08.09"]
[Round "6.12"]
[White "Zanan, Evgeny"]
[Black "Kovalskyi, Roman"]
[Result "1-0"]
[ECO "B27"]
[WhiteElo "2521"]
[BlackElo "2056"]
[Annotator "TA"]
[PlyCount "111"]
[EventDate "2022.08.05"]
[EventType "swiss"]
[EventCountry "CZE"]
[SourceTitle "playchess.com"]
[Source "ChessBase"]
[SourceQuality "1"]
[TimeControl "40/5400+30:1800+30"]

{[%evp 17,111,39,41,41,41,45,43,31,69,21,27,23,26,30,31,18,22,14,11,0,8,-4,11,0,0,0,0,0,0,-8,9,0,42,14,41,0,16,29,331,251,235,241,286,283,256,275,227,77,77,0,118,88,70,45,84,59,58,41,58,0,76,66,84,81,91,79,71,85,123,81,87,56,41,41,56,60,164,183,194,182,539,540,683,623,1343,1306,29985,29985,29989,29989,29990,29991,29995,29985,29984,5247]} 1. e4 {[%emt 0:01:31]} c5 {[%emt 0:00:12]} 2. Nf3 {[%emt 0:00:05]} g6 {[%emt 0:00:07]} 3. c4 {[%emt 0:01:17]} Nc6 {[%emt 0:01:01]} 4. d4 {[%emt 0:00:05]} cxd4 {[%emt 0:00:05]} 5. Nxd4 {[%emt 0:00:04]} Nf6 {[%emt 0:00:36]} 6. Nc3 {[%emt 0:00:05]} d6 {[%emt 0:00:08]} 7. Be2 {[%emt 0:00:14]} Nxd4 {[%emt 0:00:37]} 8. Qxd4 {[%emt 0:00:06]} Bg7 {[%emt 0:00:09]} 9. O-O {[%emt 0:00:07]} O-O {[%emt 0:01:02]} 10. Qd3 {[%emt 0:00:10] B36: Sicilian: Maroczy Bind: Gurgenidze System.} a5 {[%emt 0:00:59]} 11. Be3 {[%emt 0:00:26]} a4 {[%emt 0:00:58]} 12. Bd4 {[%emt 0:00:38] White is slightly better.} Bd7 {[%emt 0:02:42]} 13. Rad1 {[%emt 0:24:49]} (13. b4 $14 {is more appropriate.}) 13... Bc6 $11 {[%emt 0:01:55]} 14. f4 {[%emt 0:01:52]} (14. Qe3 {seems wilder.} Nd7 15. Nd5 Re8 16. g3) 14... Nd7 {[%emt 0:04:19]} 15. Bxg7 {[%emt 0:00:37]} Kxg7 {[%emt 0:00:11]} 16. Kh1 {[%emt 0:01:02] [#]} Qa5 $146 {[%emt 0:06:17]} ({Predecessor:} 16... Qb6 17. Rd2 Qb4 18. h4 Nc5 19. Qd4+ Kg8 20. Nd5 Bxd5 21. exd5 Ne4 22. Rd3 f5 {1-0 (54) Cuenca Jimenez,J (2498)-Medarde Santiago,L (2354) Leiria 2017}) 17. Bg4 {[%emt 0:17:18]} Nc5 {[%emt 0:04:15]} 18. Qd4+ {[%emt 0:05:19]} f6 {[%emt 0:01:38]} 19. Nd5 {[%emt 0:12:59]} Bxd5 {[%emt 0:02:57]} (19... e5 $5 {[%cal Re5d4]} 20. Qe3 (20. fxe5 fxe5 21. Qe3 Bxd5 $11) 20... Bxd5 21. Rxd5 Qa6 $11) 20. exd5 {[%emt 0:02:40]} b5 {[%emt 0:24:59]} 21. Rde1 {[%emt 0:03:04]} Ra7 {[%emt 0:01:58]} 22. Be2 {[%emt 0:02:45]} bxc4 {[%emt 0:02:45]} 23. Bxc4 {[%emt 0:00:05]} Rb8 {[%emt 0:00:05]} 24. Re2 {[%emt 0:04:14]} Rb4 {[%emt 0:05:24]} 25. a3 {[%emt 0:00:45]} Rb8 {[%emt 0:01:16]} 26. Rfe1 {[%emt 0:05:44]} Kf7 {[%emt 0:02:35]} 27. f5 {[%emt 0:06:26] And now Qh4 would win.} Re8 $2 {[%emt 0:14:13][%mdl 8192]} (27... Qd8 $11) 28. Qh4 $1 $18 {[%emt 0:01:11]} Kg7 {[%emt 0:00:45]} 29. Re3 {[%emt 0:00:46]} Rb7 {[%emt 0:09:27]} 30. Rh3 $1 {[%emt 0:01:48]} Rh8 {[%emt 0:00:16]} 31. Qh6+ {[%emt 0:00:22]} (31. fxg6 h5 32. Rhe3 Qd8 $16) 31... Kf7 {[%emt 0:02:13]} 32. Rhe3 {[%emt 0:01:04] Dancing on a razor blade.} (32. Ree3 $1 $18 {is the precise move to win. Threatening mate with fxg6+.} g5 33. Rhg3 (33. Qh5+ Kf8 $16)) 32... Qd8 $16 {[%emt 0:01:17] [#]} 33. Rh3 {[%emt 0:05:57]} (33. Bb5 $1 $16 {[%cal Oh6h4]} Qf8 34. Qh4 $1 (34. fxg6+ hxg6 35. Qxf8+ Kxf8 $15)) 33... Rb8 {[%emt 0:05:08]} (33... Qa5 $11 {remains equal.} 34. Re2 g5) 34. Rg3 {[%emt 0:00:46][%cal Rf5g6]} Qg8 {[%emt 0:01:36]} 35. Qe3 {[%emt 0:00:58][%csl Ge1][%cal Re3e7]} (35. Rge3 $5 {[%cal Re3e7]} Rb7 36. Bb5 $1 $16) 35... Qf8 {[%emt 0:01:08]} 36. Rh3 {[%emt 0:00:34] Strongly threatening fxg6+.} Rb7 {[%emt 0:01:15]} 37. Qe2 $36 {[%emt 0:00:33][%mdl 2048] White is more active.} (37. Bb5 $5) 37... Kg7 {[%emt 0:01:24]} 38. Re3 {[%emt 0:00:22]} (38. Bb5 $14) 38... Kf7 {[%emt 0:00:26]} (38... Qf7 $11) 39. Bb5 {[%emt 0:00:18]} Qd8 {[%emt 0:00:44]} 40. Bc6 {[%emt 0:00:12]} Ra7 {[%emt 0:00:32]} 41. Qg4 {[%emt 0:04:32]} Qc8 {[%emt 0:06:42]} 42. Rf1 {[%emt 0:00:18]} Qa6 {[%emt 0:02:48][%cal Ra6f1]} 43. Rd1 {[%emt 0:07:23]} ({Don't play} 43. Rfe1 $6 Nd3 44. fxg6+ hxg6 45. Rxe7+ (45. R1e2 Ne5 $15) 45... Rxe7 $11) 43... Qc8 {[%emt 0:04:13]} 44. Rf3 {[%emt 0:00:32] 0x0.001682002604dp-1022s more active pieces.} Kg7 {[%emt 0:07:20]} 45. Re1 {[%emt 0:02:37]} g5 {[%emt 0:03:51]} 46. Rfe3 {[%emt 0:01:21]} Qf8 {[%emt 0:00:28] [#]} (46... h5 $14 47. Rxe7+ Rxe7 48. Rxe7+ Kf8) 47. h4 $1 $18 {[%emt 0:04:02]} h6 {[%emt 0:01:54] [#]} 48. Qe2 $1 {[%emt 0:00:24][%cal Re3e7]} ({Don't take} 48. Qh5 $6 Qf7 49. Qg4 Rb8 $14) 48... e5 {[%emt 0:03:28]} (48... Rg8 49. Rxe7+ Rxe7 50. Qxe7+ Kh8 51. Qxf8 Rxf8) 49. dxe6 {[%emt 0:00:42] Black must now prevent e7.} Re7 {[%emt 0:00:21]} 50. Qd1 {[%emt 0:03:07][%csl LRa4,LRd6]} Qb8 {[%emt 0:00:51]} 51. Qh5 {[%emt 0:04:07] Hoping for Qg6+.} Rf8 {[%emt 0:00:56]} 52. hxg5 {[%emt 0:01:43] White mates.} fxg5 {[%emt 0:00:21]} 53. Qg6+ {[%emt 0:00:04]} ({Weaker is} 53. Rh3 Rf6 $18) 53... Kh8 {[%emt 0:00:08]} 54. f6 {[%emt 0:00:19]} Rg8 {[%emt 0:00:52]} 55. fxe7 {[%emt 0:00:45][%cal Rg6h6]} Rxg6 {[%emt 0:00:01]} 56. e8=Q+ {[%emt 0:00:09] Weighted Error Value: White=0.13 (very precise) /Black=0.50} 1-0

[Event "Summer Prague Open-A 2022"]
[Site "Prague"]
[Date "2022.08.09"]
[Round "6.13"]
[White "Svatos, Jan"]
[Black "Pap, Gyula"]
[Result "1/2-1/2"]
[ECO "B15"]
[WhiteElo "2185"]
[BlackElo "2481"]
[Annotator "TA"]
[PlyCount "82"]
[EventDate "2022.08.05"]
[EventType "swiss"]
[EventCountry "CZE"]
[SourceTitle "playchess.com"]
[Source "ChessBase"]
[SourceQuality "1"]
[TimeControl "40/5400+30:1800+30"]

{[%evp 16,82,0,4,12,-4,25,6,14,0,30,30,50,0,108,31,35,35,43,37,76,39,39,28,29,-4,0,-16,-16,-16,0,-32,-33,-35,-26,-52,-8,-42,-31,-32,-35,-32,-54,-45,0,0,-3,-70,-72,-74,-64,-71,-73,-65,-65,-147,-152,-132,-57,-64,-56,-59,-66,-63,-28,-49,-40,-68,-56]} 1. e4 {[%emt 0:00:04]} c6 {[%emt 0:00:07]} 2. d4 {[%emt 0:00:04]} d5 {[%emt 0:00:08]} 3. Nc3 {[%emt 0:00:04]} dxe4 {[%emt 0:00:20]} 4. Nxe4 {[%emt 0:00:07]} Nf6 {[%emt 0:00:10]} 5. Nxf6+ {[%emt 0:00:05]} exf6 {[%emt 0:00:10]} 6. Nf3 {[%emt 0:00:05]} Bd6 {[%emt 0:01:12]} 7. Bd3 {[%emt 0:00:05]} O-O {[%emt 0:00:28]} 8. O-O {[%emt 0:00:07]} Bg4 {[%emt 0:04:08]} 9. h3 {[%emt 0:00:07]} Bh5 {[%emt 0:04:43] B15: Caro-Kann: 3 Nc3: 3...g6 and 3...dxe4 4 Nxe4 Nf6 5 Nxf6+ exf6.} 10. Re1 {[%emt 0:00:24] 10.Bf5 deserves study.} Bc7 {[%emt 0:02:40]} 11. c3 {[%emt 0:01:49]} Nd7 {[%emt 0:06:05] [#] The position is equal.} 12. Bf5 $146 {[%emt 0:33:47]} ({Predecessor:} 12. Bf1 Nb6 13. g4 Bg6 14. Bg2 Nd5 15. Be3 f5 16. c4 Nxe3 17. fxe3 fxg4 18. hxg4 {0-1 (44) Ismayil,M (2001)-Maksimenko,V (2181) Chess.com INT 2022}) 12... Nb6 {[%emt 0:09:07]} 13. Qd3 {[%emt 0:01:16]} Kh8 {[%emt 0:01:42]} 14. Re4 {[%emt 0:22:15]} (14. Bxh7 Bxf3 15. gxf3 Qd6 $17) (14. b3 $14) 14... Re8 {[%emt 0:08:22] [#]} (14... Bxf3 $11 {remains equal.} 15. Qxf3 g6) 15. Rxe8+ {[%emt 0:13:45]} (15. Rh4 $1 $16 {[%cal Rh4h5]} g6 16. g4) 15... Qxe8 $14 {[%emt 0:00:09]} 16. Bd2 {[%emt 0:01:10]} (16. Bxh7 $2 Bxf3 17. gxf3 g6 18. Bxg6 fxg6 $19) 16... Qf8 {[%emt 0:05:37]} 17. Re1 {[%emt 0:02:11]} ({Avoid the trap} 17. Bxh7 $2 Bxf3 18. gxf3 Qd6 $19) 17... Qd6 {[%emt 0:00:40]} 18. g4 {[%emt 0:16:48] White is more active.} Bg6 {[%emt 0:01:17]} 19. Qe4 {[%emt 0:00:14][%cal Od2f4]} Bxf5 {[%emt 0:21:16] [#]} 20. Qe8+ {[%emt 0:02:32]} Qf8 {[%emt 0:00:24]} 21. Qxf8+ {[%emt 0:00:02]} Rxf8 {[%emt 0:00:08]} 22. gxf5 {[%emt 0:00:02]} Rd8 {[%emt 0:04:28]} 23. b3 {[%emt 0:00:34]} Kg8 {[%emt 0:02:32]} 24. c4 {[%emt 0:00:15]} Nc8 {[%emt 0:01:22] Prevents Re7.} 25. Bb4 {[%emt 0:03:27]} a5 {[%emt 0:08:21]} (25... Bd6 $5 {[%cal Rd6b4]} 26. Bc3 b6 $11) 26. Bc5 {[%emt 0:01:09]} (26. Be7 $5 Nxe7 27. Rxe7 $11) 26... Bd6 {[%emt 0:05:54]} 27. Bxd6 {[%emt 0:00:14]} Nxd6 $15 {[%emt 0:00:07][%mdl 4096] Endgame KRN-KRN} 28. Re7 {[%emt 0:00:09]} Kf8 {[%emt 0:01:44]} ({Much less strong is} 28... Nxf5 29. Rxb7 Kf8 30. Ra7 $14) 29. Rc7 {[%emt 0:00:06]} Rb8 {[%emt 0:00:31] White must now prevent ...Ke8.} ({Don't play} 29... Nxf5 30. Rxb7 Nxd4 31. Nxd4 Rxd4 32. Ra7 $11) (29... Ke8 $5 {[%cal Rd8b8]} 30. c5 Nxf5 31. Rxb7 a4 $15) 30. d5 {[%emt 0:00:29]} cxd5 {[%emt 0:01:28]} 31. cxd5 {[%emt 0:00:05]} (31. Rd7 $11 Ne4 32. Rxd5) 31... Nxf5 {[%emt 0:04:47]} 32. Nd2 {[%emt 0:00:20]} b5 {[%emt 0:02:59] Prevents Nc4.} 33. Ne4 {[%emt 0:00:38]} Rd8 {[%emt 0:00:51]} 34. Rc5 {[%emt 0:00:14]} Nd4 {[%emt 0:00:43]} 35. a4 {[%emt 0:00:22]} (35. Nc3 $15) 35... f5 $17 {[%emt 0:01:28]} 36. Nd2 {[%emt 0:00:08] [#]} bxa4 {[%emt 0:01:09]} ({Black should play} 36... Ke7 $1 $17 {[%cal Re7d6] ...Kd6 is the strong threat.} 37. axb5 Kd6) 37. bxa4 $15 {[%emt 0:00:02]} Ne2+ {[%emt 0:00:43]} 38. Kh2 $1 {[%emt 0:01:23]} Nf4 {[%emt 0:00:25]} 39. Rxa5 {[%emt 0:01:18]} Nxd5 {[%emt 0:00:10]} 40. Ra7 {[%emt 0:01:24]} Rc8 {[%emt 0:01:17]} 41. Nf3 {[%emt 0:03:32]} Rc2 {[%emt 0:02:50] Weighted Error Value: White=0.19 (very precise) /Black=0.16 (very precise)} 1/2-1/2

[Event "Summer Prague Open-A 2022"]
[Site "Prague"]
[Date "2022.08.09"]
[Round "6.14"]
[White "Kaspi, Alexander"]
[Black "Kanakova, Natalie"]
[Result "1-0"]
[ECO "A36"]
[WhiteElo "2414"]
[BlackElo "2171"]
[Annotator "TA"]
[PlyCount "151"]
[EventDate "2022.08.05"]
[EventType "swiss"]
[EventCountry "CZE"]
[SourceTitle "playchess.com"]
[Source "ChessBase"]
[SourceQuality "1"]
[TimeControl "40/5400+30:1800+30"]

{[%evp 20,151,0,0,0,8,3,-8,41,37,56,58,56,55,56,14,13,6,18,16,34,12,0,0,2,0,50,39,208,214,210,75,137,109,109,110,120,105,106,95,110,0,108,94,109,102,127,117,179,124,202,200,189,104,123,97,143,183,194,54,55,47,58,50,62,0,0,0,4,4,2,8,62,56,193,15,148,110,267,159,241,120,169,133,218,156,177,182,193,182,183,219,284,329,370,197,306,184,295,275,735,468,527,493,468,428,639,584,921,880,1546,1646,2079,2054,29968,29968,29970,29971,29969,29971,29965,29966,29981,29982,29985,29987,29990,29989,29989,29990,29990,29991,29991,29992]} 1. c4 {[%emt 0:00:04]} c5 {[%emt 0:00:45]} 2. Nc3 {[%emt 0:00:07]} g6 {[%emt 0:01:21]} 3. g3 {[%emt 0:00:24]} Bg7 {[%emt 0:00:27]} 4. Bg2 {[%emt 0:00:07]} Nc6 {[%emt 0:00:32]} 5. d3 {[%emt 0:00:07]} e5 {[%emt 0:00:42]} 6. e3 {[%emt 0:00:42]} Nge7 {[%emt 0:00:54]} 7. Nge2 {[%emt 0:00:08]} O-O {[%emt 0:00:41]} 8. a3 {[%emt 0:00:05]} a5 {[%emt 0:03:26]} 9. O-O {[%emt 0:00:21]} d6 {[%emt 0:00:37]} 10. Rb1 {[%emt 0:00:17]} Rb8 {[%emt 0:02:32]} 11. Bd2 {[%emt 0:08:10]} Be6 {[%emt 0:01:27] A36: Symmetrical English vs ...g6: 4 Bg2 Bg7.} 12. e4 {[%emt 0:00:45] Inhibits d5.} f5 {[%emt 0:02:47]} 13. Nd5 {[%emt 0:14:17] [#]} Bf7 $146 {[%emt 0:18:02]} (13... b5 $11) ({Predecessor:} 13... b6 14. b4 axb4 15. axb4 Bxd5 16. cxd5 Nxb4 17. Bxb4 cxb4 18. Rxb4 fxe4 19. dxe4 Bh6 {½-½ (41) Roos,D (2435)-Filipovic,B (2439) Baden 2010}) 14. Bg5 $14 {[%emt 0:12:42]} h6 {[%emt 0:03:27]} 15. Bxe7 {[%emt 0:00:32]} Nxe7 {[%emt 0:00:07]} 16. Nxe7+ {[%emt 0:00:07]} Qxe7 {[%emt 0:00:05]} 17. Nc3 {[%emt 0:00:09]} f4 {[%emt 0:05:34]} 18. b4 {[%emt 0:05:30]} cxb4 {[%emt 0:06:05]} 19. axb4 {[%emt 0:02:18]} b6 {[%emt 0:00:48]} 20. Bh3 {[%emt 0:12:47]} h5 {[%emt 0:06:24]} 21. Nd5 {[%emt 0:03:27]} Qd8 {[%emt 0:06:03]} 22. Qa4 {[%emt 0:06:22]} Be8 {[%emt 0:02:55]} (22... fxg3 $11 23. fxg3 Kh7) 23. Qa2 {[%emt 0:00:16]} Bd7 $2 {[%emt 0:14:44]} (23... axb4 $14 24. Rxb4 Bf7) 24. Bxd7 $18 {[%emt 0:01:11]} Qxd7 {[%emt 0:00:03] [#]} 25. f3 {[%emt 0:01:15]} (25. bxa5 $6 bxa5 26. c5 (26. Qxa5 Rxb1 27. Rxb1 fxg3 $14) 26... Kh7 $16) (25. c5 $1 $18 {and the rest is easy. aiming for Nf6+.} Kh7 26. cxb6 (26. bxa5 bxa5 27. cxd6 Rxb1 $16) (26. Nxb6 Qh3 $15)) 25... fxg3 {[%emt 0:02:04]} (25... Kh7 $142) 26. hxg3 {[%emt 0:00:10]} Qh3 {[%emt 0:00:25]} 27. Qg2 {[%emt 0:00:28] Active counter play!} Qd7 {[%emt 0:00:26]} 28. Kh2 {[%emt 0:00:21]} Kh7 {[%emt 0:01:30]} 29. Qh3 {[%emt 0:03:32]} Qa4 {[%emt 0:01:56][%cal Of8f3]} 30. Qg2 {[%emt 0:01:59]} (30. g4 {looks sharper.} Qd7 31. Kg2 axb4 32. Rxb4 Bh6 33. gxh5 Qxh3+ 34. Kxh3 gxh5 35. Kh4) 30... Qd7 $1 {[%emt 0:02:11]} 31. Qa2 {[%emt 0:02:30]} Qa7 {[%emt 0:01:51]} 32. Kg2 {[%emt 0:00:56]} Ra8 {[%emt 0:01:54]} 33. Ra1 {[%emt 0:04:52] And now Qf2 would win.} Rfb8 {[%emt 0:02:06]} (33... Qb7 $16 {is a better defense.}) 34. Qa4 {[%emt 0:03:09]} ({White should play} 34. Qf2 $18) 34... Bf8 {[%emt 0:03:56]} (34... Rb7 $16) 35. Qc6 {[%emt 0:02:05]} Qb7 {[%emt 0:02:38]} 36. Qxb7+ {[%emt 0:00:27]} (36. b5 $18) 36... Rxb7 $16 {[%emt 0:00:04]} 37. Rf2 {[%emt 0:00:23]} Be7 {[%emt 0:03:11]} (37... Raa7 $142) 38. Rb2 {[%emt 0:01:03]} Bd8 {[%emt 0:01:16]} 39. Kf2 {[%emt 0:04:09]} (39. bxa5 $18 {Threatens to win with a6.} Rba7 40. Nxb6) 39... Rf7 $14 {[%emt 0:01:50]} 40. Ke2 {[%emt 0:00:25]} Kg7 {[%emt 0:00:32]} 41. Ke3 {[%emt 0:36:22]} g5 {[%emt 0:03:18]} 42. f4 {[%emt 0:00:00]} (42. Rg2 $14) 42... exf4+ {[%emt 0:01:03]} 43. gxf4 {[%emt 0:00:00]} gxf4+ {[%emt 0:00:14]} 44. Kf3 {[%emt 0:00:00]} Kh6 {[%emt 0:01:22]} 45. Rg2 {[%emt 0:00:00]} Raa7 {[%emt 0:07:44]} (45... Bf6 $11 46. Rh1 (46. Nxf6 Rxf6 47. Rh2 Rg6 $11) 46... axb4) 46. Rg8 $1 {[%emt 0:00:00][%mdl 1024] White has compensation.} Bh4 {[%emt 0:14:56]} (46... Bf6 $14 47. Nxf6 Rxf6) 47. b5 $2 {[%emt 0:00:00]} (47. Nxf4 Kh7 48. Rg2 Bf6 $11) (47. Rh1 $18 Bf6 48. Nxf6 (48. Nxf4 h4 $11) 48... Rxf6 49. Rh8+ Rh7 50. Rxh7+ Kxh7 51. bxa5 (51. Rxh5+ Rh6 $16) 51... bxa5 52. Rxh5+ Rh6 53. Rd5) 47... Rab7 {[%emt 0:01:29]} (47... Bf6 $11 {keeps the balance.} 48. Nxf6 Rxf6) 48. Rh1 {[%emt 0:00:00]} Bg5 {[%emt 0:04:08]} (48... Bf6 $16 {was worth a try.}) 49. d4 {[%emt 0:00:00]} ({Better is} 49. Rh8+ $18 Rh7 50. Rc8 (50. Rxh7+ Kxh7 51. Rxh5+ Bh6 $16)) 49... h4 {[%emt 0:00:32]} (49... a4 $16 50. Rg1 Rg7 51. Rh8+ Rh7) 50. e5 {[%emt 0:00:00]} (50. Rc8 $18 {and White stays clearly on top.}) 50... dxe5 $16 {[%emt 0:00:14]} 51. dxe5 {[%emt 0:00:00]} Rg7 {[%emt 0:00:23]} (51... a4 $16) 52. Rc8 {[%emt 0:00:00]} Kg6 {[%emt 0:00:40]} 53. Ke4 {[%emt 0:00:00] Strongly threatening Rc6+.} f3 {[%emt 0:01:58]} 54. Rc6+ {[%emt 0:00:00]} (54. Kxf3 Kf5 $14) 54... Kh5 {[%emt 0:00:10]} 55. Kxf3 {[%emt 0:00:00]} (55. Rxb6 Rxb6 56. Nxb6 f2 $11) 55... Rgf7+ {[%emt 0:00:07]} 56. Ke4 {[%emt 0:00:00]} Rf2 {[%emt 0:00:15]} 57. e6 {[%emt 0:00:00]} (57. Rxb6 $142 Rxb6 58. Nxb6) 57... Re2+ {[%emt 0:00:42]} (57... a4 $142 58. Rxb6 Re2+ 59. Kd3 Rxb6 60. Kxe2 (60. Nxb6 Re3+ 61. Kd4 Rxe6 $16) 60... Rxe6+ 61. Kf3 Re8) 58. Kf5 {[%emt 0:00:00]} Rf2+ {[%emt 0:00:56]} (58... Rb8 {keeps fighting.} 59. e7 a4) 59. Ke5 $18 {[%emt 0:00:00]} Be7 $2 {[%emt 0:00:37]} (59... Re2+ $2 60. Kd4 $18) (59... a4 60. Rxb6 Re2+ 61. Kf5 Rf2+ 62. Ke4 Re2+ 63. Kd3 Rxb6 64. Kxe2 (64. Nxb6 Re3+ 65. Kd4 Rxe6 $16) 64... Rxe6+ 65. Kf3 Re8) 60. Nxe7 {[%emt 0:00:00]} Rxe7 {[%emt 0:00:04]} 61. Rxb6 {[%emt 0:00:00][%mdl 4096] Endgame KRR-KRR} Re2+ {[%emt 0:00:53]} 62. Kf6 {[%emt 0:00:00]} Rh7 {[%emt 0:00:06]} (62... Re8 $142 63. c5 Rf2+ 64. Ke5 Re2+ 65. Kd5 Rd2+ 66. Ke5 Re2+ 67. Kd4 Rd2+ 68. Kc3 Red8) 63. Rd6 {[%emt 0:00:44]} Kg4 {[%emt 0:00:56]} 64. b6 {[%emt 0:01:20]} h3 {[%emt 0:00:15]} 65. Rd4+ {[%emt 0:01:12]} Kg3 {[%emt 0:00:57]} 66. Rd3+ {[%emt 0:00:06]} ({Less strong is} 66. Rd7 Rh6+ 67. Kf5 Rexe6 $16) 66... Kg2 {[%emt 0:00:07] [#]} 67. Rdxh3 $3 {[%emt 0:00:23][%mdl 512] White mates.} Rxh3 {[%emt 0:00:29]} (67... Rf2+ 68. Kg6) 68. Rxh3 {[%emt 0:00:06]} Kxh3 {[%emt 0:00:03] KR-K3P} 69. e7 {[%emt 0:00:18]} Rf2+ {[%emt 0:00:35]} 70. Ke6 {[%emt 0:00:07]} a4 {[%emt 0:01:03]} 71. b7 {[%emt 0:00:06]} ({Weaker is} 71. e8=Q Re2+ 72. Kf7 Rxe8 73. Kxe8 a3 $18) 71... a3 {[%emt 0:00:47]} 72. b8=Q {[%emt 0:00:08]} a2 {[%emt 0:00:12]} 73. Qh8+ {[%emt 0:00:06]} Kg2 {[%emt 0:00:11]} 74. e8=Q {[%emt 0:00:09]} Re2+ {[%emt 0:00:15]} 75. Kd7 {[%emt 0:00:06]} Rxe8 {[%emt 0:00:06]} 76. Kxe8 {[%emt 0:00:06] Weighted Error Value: White=0.43/Black=0.43} 1-0

[Event "Summer Prague Open-A 2022"]
[Site "Prague"]
[Date "2022.08.09"]
[Round "6.15"]
[White "Matras, Ondrej"]
[Black "Weishaeutel, Moritz"]
[Result "0-1"]
[ECO "D44"]
[WhiteElo "2229"]
[BlackElo "2400"]
[Annotator "RC"]
[PlyCount "64"]
[EventDate "2022.08.05"]
[EventType "swiss"]
[EventCountry "CZE"]
[SourceTitle "playchess.com"]
[Source "ChessBase"]
[SourceQuality "1"]
[TimeControl "40/5400+30:1800+30"]

1. d4 {[%emt 0:00:01]} d5 {[%emt 0:00:04]} 2. c4 {[%emt 0:00:02]} c6 {[%emt 0:00:06]} 3. Nf3 {[%emt 0:00:05]} Nf6 {[%emt 0:00:06]} 4. Nc3 {[%emt 0:00:07]} e6 {[%emt 0:00:05]} 5. Bg5 {[%emt 0:01:10]} dxc4 {[%emt 0:00:06]} 6. e4 {[%emt 0:00:04]} b5 {[%emt 0:00:05]} 7. e5 {[%emt 0:00:04]} h6 {[%emt 0:00:05]} 8. Bh4 {[%emt 0:00:05]} g5 {[%emt 0:00:07]} 9. Nxg5 {[%emt 0:00:03]} hxg5 {[%emt 0:00:06]} 10. Bxg5 {[%emt 0:00:06]} Nbd7 {[%emt 0:00:07]} 11. exf6 {[%emt 0:00:14]} Bb7 {[%emt 0:00:09]} 12. g3 {[%emt 0:01:45]} Qb6 {[%emt 0:00:06]} 13. Bg2 {[%emt 0:00:11]} O-O-O {[%emt 0:00:07]} 14. O-O {[%emt 0:02:11]} c5 {[%emt 0:00:03]} 15. d5 {[%emt 0:00:33]} b4 {[%emt 0:00:06]} 16. Na4 {[%emt 0:01:59]} Qa6 {[%emt 0:00:29]} 17. b3 {[%emt 0:25:43]} c3 {[%emt 0:15:46]} 18. a3 {[%emt 0:08:32]} Bxd5 {[%emt 0:01:23]} 19. axb4 {[%emt 0:46:08]} Bxg2 {[%emt 0:01:11]} 20. Kxg2 {[%emt 0:00:02]} Ne5 {[%emt 0:03:42]} 21. Qe1 {[%emt 0:00:20]} Rxh2+ {[%emt 0:01:32]} 22. Kxh2 {[%emt 0:00:02]} Nf3+ {[%emt 0:00:09]} 23. Kg2 {[%emt 0:00:02]} Nxe1+ {[%emt 0:00:44]} 24. Rfxe1 {[%emt 0:00:02]} Qc6+ {[%emt 0:01:18]} 25. f3 {[%emt 0:00:26]} cxb4 {[%emt 0:00:40]} 26. Re4 {[%emt 0:00:22]} Qd5 {[%emt 0:07:19]} 27. Rc4+ {[%emt 0:00:15]} Kb7 {[%emt 0:00:06]} 28. Be3 {[%emt 0:00:17]} Rc8 {[%emt 0:04:16]} 29. Rd4 {[%emt 0:01:38]} Qxb3 {[%emt 0:02:48]} 30. Rd7+ {[%emt 0:00:02]} Rc7 {[%emt 0:00:10]} 31. Rd8 {[%emt 0:00:06]} c2 {[%emt 0:00:19]} 32. Kf2 {[%emt 0:00:55]} Qb1 {[%emt 0:00:45]} 0-1

[Event "Summer Prague Open-A 2022"]
[Site "Prague"]
[Date "2022.08.09"]
[Round "6.16"]
[White "Seitz, Patrick"]
[Black "Meissner, Felix"]
[Result "0-1"]
[ECO "B90"]
[WhiteElo "2170"]
[BlackElo "2381"]
[Annotator "TA"]
[PlyCount "46"]
[EventDate "2022.08.05"]
[EventType "swiss"]
[EventCountry "CZE"]
[SourceTitle "playchess.com"]
[Source "ChessBase"]
[SourceQuality "1"]
[TimeControl "40/5400+30:1800+30"]

{[%evp 11,46,0,0,0,-6,-20,7,14,35,-5,-9,-14,-22,-35,-14,-58,-57,-70,-54,-74,-66,-125,-117,-117,-101,-130,-131,-153,-167,-132,-61,-370,-333,-431,-172,-483,-472]} 1. e4 {[%emt 0:00:02]} c5 {[%emt 0:09:03]} 2. Nf3 {[%emt 0:02:15]} d6 {[%emt 0:00:06]} 3. d4 {[%emt 0:00:08]} cxd4 {[%emt 0:00:05]} 4. Nxd4 {[%emt 0:00:03]} Nf6 {[%emt 0:00:05][%cal Bg8f6,Bf6d7,Bd7c5][%mdl 32]} 5. Nc3 {[%emt 0:00:04]} a6 {[%emt 0:00:05]} 6. Rg1 {[%emt 0:00:06]} b5 {[%emt 0:01:30][%cal Bb7b5,Bb5b4][%mdl 32]} 7. g4 {[%emt 0:03:05] B90: Sicilian Najdorf: Unusual White 6th moves, 6 Be3 Ng4 and 6 Be3 e5.} Bb7 {[%emt 0:01:07]} 8. Bg2 {[%emt 0:01:04]} e6 {[%emt 0:00:48]} (8... e5 $5 {[%cal Re5d4]} 9. Nf5 h6 $11) 9. g5 {[%emt 0:02:40] The position is equal.} Nfd7 {[%emt 0:00:14]} 10. h4 {[%emt 0:01:58]} b4 {[%emt 0:01:17]} 11. Nce2 {[%emt 0:07:45]} Nc5 {[%emt 0:00:15]} 12. Ng3 {[%emt 0:02:58] [#]} Nbd7 $146 {[%emt 0:03:06]} ({Predecessor:} 12... d5 13. exd5 Bxd5 14. Be3 Bxg2 15. Rxg2 Qd5 16. Rg1 Nc6 17. Nxc6 Qxc6 18. Qe2 Rd8 {½-½ (55) Beerdsen,T (2260)-Jacobs,F (2132) Amsterdam 2014}) 13. h5 {[%emt 0:06:33]} Be7 {[%emt 0:04:22]} 14. f4 {[%emt 0:04:18]} h6 $1 {[%emt 0:22:08][%cal Rh6g5]} 15. g6 {[%emt 0:04:20]} O-O {[%emt 0:18:13] Threatens to win with ...Bh4.} 16. gxf7+ {[%emt 0:12:36]} (16. Qg4 $15) 16... Rxf7 $17 {[%emt 0:00:12] Hoping for ...Bh4.} 17. Be3 {[%emt 0:00:42]} Qa5 $1 {[%emt 0:09:56]} 18. Nb3 {[%emt 0:05:48]} Qc7 {[%emt 0:03:32] Black is more active.} 19. Nxc5 {[%emt 0:02:34]} Nxc5 {[%emt 0:00:26]} 20. Qg4 {[%emt 0:21:49]} Bf6 {[%emt 0:06:27]} (20... Qa5 $17 21. f5 b3+ 22. c3 Bf6) 21. O-O-O $2 {[%emt 0:03:25][%mdl 8192] [#]} ({White has to play} 21. e5 $1 $15 dxe5 22. Bxb7 Qxb7 23. f5 (23. Bxc5 exf4 24. O-O-O Rc8 $17)) 21... Rc8 $1 $19 {[%emt 0:01:58][%cal Oc5b3] ( -> ...Nb3+!)} 22. Qe2 {[%emt 0:03:36][%cal Oe4e5]} Qa5 $2 {[%emt 0:10:39]} (22... Na4 23. Rd4 {[#]} Nxb2 $1 {[%mdl 512]} 24. Kxb2 Qc3+ 25. Kb1 Bxd4 26. Bxd4 Qxd4) 23. e5 $2 {[%emt 0:02:58]} (23. Kb1 Bxb2 24. Bxc5 Rxc5 25. Kxb2) 23... b3 {[%emt 0:01:22] Weighted Error Value: White=0.60/Black=0.16 (very precise)} 0-1